fUST/lending_fUST_20250629
["ID","MTS","AMOUNT","RATE_DAILY","PERIOD"]
[368338624,1751129438735,-670.17991676,0.00018975,2]
[368338625,1751129438745,-500.0,0.00018975,2]
[368338626,1751129438755,-500.0,0.00018975,2]
[368338627,1751129438766,-167.16303921,0.00018975,2]
[368338628,1751129438775,-500.0,0.00018975,2]
[368338629,1751129438784,-500.0,0.00018975,2]
[368338630,1751129438794,-500.0,0.00018975,2]
[368338631,1751129438803,-500.0,0.00018975,2]
[368338632,1751129438813,-500.0,0.00018975,2]
[368338633,1751129438822,-500.0,0.00018975,2]
[368338634,1751129438832,-500.0,0.00018975,2]
[368338635,1751129438841,-500.0,0.00018975,2]
[368338636,1751129438851,-500.0,0.00018975,2]
[368338637,1751129438860,-500.0,0.00018975,2]
[368338638,1751129438869,-500.0,0.00018975,2]
[368338639,1751129438879,-500.0,0.00018975,2]
[368338640,1751129438888,-500.0,0.00018975,2]
[368338642,1751129438898,-500.0,0.00018975,2]
[368338644,1751129438907,-500.0,0.00018975,2]
[368338645,1751129438917,-500.0,0.00018975,2]
[368338646,1751129438926,-500.0,0.00018975,2]
[368338647,1751129438935,-500.0,0.00018975,2]
[368338649,1751129438945,-500.0,0.00018975,2]
[368338650,1751129438954,-500.0,0.00018975,2]
[368338651,1751129438963,-500.0,0.00018975,2]
[368338652,1751129438973,-500.0,0.00018975,2]
[368338654,1751129438982,-500.0,0.00018975,2]
[368338655,1751129438992,-638.9034834,0.00018975,2]
[368338656,1751129439001,-499.99999999,0.00018975,2]
[368338657,1751129439011,-200.0,0.00018977,10]
[368338658,1751129439020,-200.0,0.00018977,10]
[368338659,1751129439030,-5277.67106753,0.00018985,2]
[368338660,1751129439039,-1465.37571124,0.00018985,2]
[368338661,1751129439052,-264.45113018,0.00018985,2]
[368338662,1751129439061,-10.87755537,0.00018989,2]
[368338663,1751129439073,-495.7399992,0.00018989,2]
[368338664,1751129439085,-534.94906441,0.00018989,2]
[368338665,1751129439097,-708.43795877,0.00018989,2]
[368338666,1751129439108,-85.22358349,0.00018989,2]
[368338667,1751129439118,-282.86,0.0001899,3]
[368338668,1751129439127,-283.0,0.00018991,2]
[368338669,1751129439137,-500.0,0.00018999,2]
[368338670,1751129439146,-151.32340636,0.00019,2]
[368338671,1751129439157,-1249.0500665,0.00019,2]
[368338672,1751129439168,-813.62704925,0.00019,2]
[368338673,1751129439180,-1297.88913375,0.00019,2]
[368338794,1751129441133,-52684.52033079,0.00019,2]
[368338795,1751129441143,-1183.07861305,0.00019,2]
[368338796,1751129441152,-910.47401236,0.00019,2]
[368338797,1751129441161,-732.341235,0.00019,2]
[368338798,1751129441171,-202.4526486,0.00019,2]
[368338799,1751129441180,-159.266168,0.00019,2]
[368338800,1751129441189,-575.2177202,0.00019,2]
[368338801,1751129441198,-159.266168,0.00019,2]
[368338802,1751129441207,-171.9749283,0.00019,2]
[368338803,1751129441216,-153.0,0.00019,2]
[368338804,1751129441226,-575.2177202,0.00019,2]
[368338805,1751129441234,-153.0,0.00019,2]
[368338806,1751129441243,-159.266168,0.00019,2]
[368338807,1751129441253,-159.266168,0.00019,2]
[368338808,1751129441263,-1835.22816124,0.00019033,2]
[368338809,1751129441274,-565.71,0.00019042,3]
[368338810,1751129441284,-168.0,0.00019067,2]
[368338811,1751129441294,-1835.22816124,0.00019077,2]
[368338812,1751129441304,-13932.06237176,0.00019077,2]
[368338813,1751129441313,-4980.90900474,0.00019078,2]
[368338814,1751129441322,-151.0,0.000191,2]
[368338815,1751129441332,-151.0,0.000191,2]
[368338816,1751129441341,-318.532336,0.000191,2]
[368338817,1751129441350,-151.0,0.000191,2]
[368338818,1751129441359,-4392.42654368,0.000191,2]
[368338819,1751129441369,-168.0,0.0001911,2]
[368338820,1751129441378,-4392.42654353,0.00019141,2]
[368338821,1751129441388,-314.0,0.00019142,2]
[368338822,1751129441398,-460.0,0.0001915,2]
[368338823,1751129441407,-168.0,0.0001916,2]
[368338824,1751129441418,-283.0,0.00019162,2]
[368338825,1751129441429,-1000.0,0.00019166,2]
[368338826,1751129441439,-1000.0,0.00019172,2]
[368338827,1751129441448,-500.0,0.00019173,2]
[368338828,1751129441458,-500.0,0.00019173,2]
[368338829,1751129441467,-500.0,0.00019173,2]
[368338830,1751129441476,-500.0,0.00019173,2]
[368338831,1751129441486,-440.74320008,0.00019173,2]
[368338832,1751129441496,-500.0,0.00019173,2]
[368338833,1751129441505,-500.0,0.00019173,2]
[368338834,1751129441515,-500.68364037,0.00019173,2]
[368338835,1751129441523,-500.0,0.00019173,2]
[368338836,1751129441532,-500.0,0.00019173,2]
[368338837,1751129441541,-500.0,0.00019173,2]
[368338838,1751129441550,-500.0,0.00019173,2]
[368338839,1751129441559,-500.0,0.00019173,2]
[368338840,1751129441568,-500.0,0.00019173,2]
[368338841,1751129441577,-500.0,0.00019173,2]
[368338842,1751129441586,-500.0,0.00019173,2]
[368338843,1751129441595,-500.0,0.00019173,2]
[368338844,1751129441604,-500.0,0.00019173,2]
[368338845,1751129441613,-500.0,0.00019173,2]
[368338846,1751129441622,-502.41607941,0.00019173,2]
[368338847,1751129441631,-376.01643836,0.00019173,2]
[368338848,1751129441640,-500.0,0.00019173,2]
[368338849,1751129441653,-500.0,0.00019173,2]
[368338850,1751129441662,-500.0,0.00019173,2]
[368338851,1751129441671,-318.66352692,0.00019173,2]
[368338852,1751129441680,-500.0,0.00019173,2]
[368338853,1751129441690,-500.0,0.00019173,2]
[368338854,1751129441700,-500.0,0.00019173,2]
[368338855,1751129441709,-500.0,0.00019173,2]
[368338856,1751129441718,-500.00821424,0.00019173,2]
[368338857,1751129441727,-500.0,0.00019173,2]
[368338858,1751129441736,-246.80957729,0.00019173,2]
[368338859,1751129441745,-500.0,0.00019173,2]
[368338860,1751129441755,-500.0,0.00019173,2]
[368338861,1751129441764,-504.28252098,0.00019173,2]
[368338862,1751129441773,-621.64514554,0.00019173,2]
[368338863,1751129441783,-355.79223471,0.00019176,2]
[368338864,1751129441792,-399.05456429,0.00019176,2]
[368338865,1751129441801,-14092.32269324,0.00019177,3]
[368338866,1751129441902,-2219.71245049,0.00019177,3]
[368338867,1751129441974,-12260.35467116,0.00019177,3]
[368338868,1751129441985,-714.78080813,0.00019177,3]
[368338869,1751129441997,-14774.354829,0.00019177,3]
[368338870,1751129442009,-24521.23657081,0.00019177,3]
[368338871,1751129442020,-994.5,0.00019177,3]
[368338885,1751129443190,-2075.48,0.00019177,3]
[368338889,1751129446014,-500271.18108728,0.00019177,3]
[368338896,1751129723455,228.219318,0.00013699,2]
[368338898,1751129728436,1195.005023,0.0001791,2]
[368338899,1751129737551,904.5454278,0.00018082,2]
[368338900,1751129745101,1596.7387527,0.0001791,2]
[368338901,1751129850569,1791.9549362,0.00017782,2]
[368338902,1751129854282,24900.0,0.00017782,2]
[368338904,1751129956143,164.8153706,0.00018015,2]
[368338906,1751130431184,-662.26292982,0.00018109,2]
[368338946,1751130632290,-3770.30777098,0.00018109,2]
[368338948,1751130632299,-300.0,0.00018116,2]
[368338950,1751130632308,-300.0,0.00018116,2]
[368338952,1751130632317,-300.0,0.00018116,2]
[368338954,1751130632326,-300.0,0.00018116,2]
[368338956,1751130632336,-1200.0,0.00018116,2]
[368338958,1751130632344,-14835.423253,0.00018117,2]
[368338960,1751130632353,-690.642,0.00018217,2]
[368338962,1751130632363,-207.4,0.00018217,2]
[368338964,1751130632372,-716.195754,0.00018272,2]
[368338966,1751130632381,-742.6949969,0.00018327,2]
[368338968,1751130632391,-3878.93173806,0.00018327,2]
[368338970,1751130632400,-860.91702742,0.00018382,2]
[368338972,1751130632409,-366.0,0.00018761,2]
[368338974,1751130632419,-322.579123,0.00018792,2]
[368338976,1751130632428,-568.15510018,0.00018857,2]
[368338978,1751130632437,-164.8153706,0.0001887,2]
[368338980,1751130632446,-1000.0,0.00018897,2]
[368338981,1751130632455,-848.59,0.00018949,3]
[368338982,1751130632465,-500.0,0.00018957,2]
[368338983,1751130632475,-500.0,0.00018957,2]
[368338984,1751130632484,-500.0,0.00018957,2]
[368338985,1751130632493,-500.0,0.00018957,2]
[368338986,1751130632502,-500.0,0.00018957,2]
[368338987,1751130632512,-500.0,0.00018957,2]
[368338988,1751130632521,-500.0,0.00018957,2]
[368338989,1751130632531,-500.0,0.00018957,2]
[368338990,1751130632540,-500.0,0.00018957,2]
[368338991,1751130632549,-500.0,0.00018957,2]
[368338992,1751130632558,-500.0,0.00018957,2]
[368338993,1751130632567,-516.90436456,0.00018957,2]
[368338994,1751130632576,-500.0,0.00018957,2]
[368338995,1751130632585,-500.0,0.00018957,2]
[368338996,1751130632595,-500.0,0.00018957,2]
[368338997,1751130632604,-500.0,0.00018957,2]
[368338998,1751130632613,-500.0,0.00018957,2]
[368338999,1751130632623,-500.0,0.00018957,2]
[368339000,1751130632632,-500.0,0.00018957,2]
[368339001,1751130632642,-500.0,0.00018957,2]
[368339002,1751130632651,-500.0,0.00018957,2]
[368339003,1751130632661,-23221.87729931,0.00018959,2]
[368339004,1751130632683,-642.32543299,0.00018959,2]
[368339005,1751130632875,-1135.7972677,0.00018959,2]
[368339006,1751130632884,-10854.55089009,0.00018959,2]
[368339007,1751130632894,-939.16787383,0.00018959,2]
[368339019,1751130638213,-551.18632684,0.00018956,2]
[368339020,1751130638231,-500.0,0.00018956,2]
[368339021,1751130638247,-500.0,0.00018956,2]
[368339022,1751130638262,-2516.68051169,0.00018956,2]
[368339023,1751130638277,-500.0,0.00018956,2]
[368339024,1751130638293,-500.0,0.00018956,2]
[368339025,1751130638308,-500.0,0.00018956,2]
[368339026,1751130638324,-500.0,0.00018956,2]
[368339027,1751130638338,-500.0,0.00018956,2]
[368339028,1751130638353,-500.0,0.00018956,2]
[368339029,1751130638368,-2516.68051169,0.00018956,2]
[368339030,1751130638383,-500.0,0.00018956,2]
[368339031,1751130638398,-228.86974188,0.00018956,2]
[368339032,1751130638413,-500.0,0.00018956,2]
[368339033,1751130638428,-500.0,0.00018956,2]
[368339034,1751130638442,-582.18174534,0.00018956,2]
[368339035,1751130638457,-500.0,0.00018956,2]
[368339036,1751130638471,-2516.68051169,0.00018956,2]
[368339037,1751130638510,-500.0,0.00018956,2]
[368339038,1751130638536,-500.0,0.00018956,2]
[368339039,1751130638559,-500.0,0.00018956,2]
[368339040,1751130638578,-588.66056257,0.00018956,2]
[368339041,1751130638595,-168.5449294,0.00018956,2]
[368339042,1751130638613,-500.0,0.00018956,2]
[368339043,1751130638631,-500.0,0.00018956,2]
[368339044,1751130638647,-2516.68051169,0.00018956,2]
[368339045,1751130638663,-500.0,0.00018956,2]
[368339046,1751130638680,-500.0,0.00018956,2]
[368339047,1751130638696,-2516.68051169,0.00018956,2]
[368339048,1751130638712,-500.0,0.00018956,2]
[368339049,1751130638728,-500.0,0.00018956,2]
[368339050,1751130638742,-500.0,0.00018956,2]
[368339051,1751130638758,-500.0,0.00018956,2]
[368339052,1751130638773,-2516.68051169,0.00018956,2]
[368339053,1751130638789,-500.0,0.00018956,2]
[368339054,1751130638804,-2516.68051169,0.00018956,2]
[368339055,1751130638819,-500.0,0.00018956,2]
[368339056,1751130638833,-2516.68051169,0.00018956,2]
[368339057,1751130638848,-500.0,0.00018956,2]
[368339058,1751130638864,-500.0,0.00018956,2]
[368339059,1751130638879,-500.0,0.00018956,2]
[368339060,1751130638895,-2516.68051169,0.00018956,2]
[368339061,1751130638910,-545.53485106,0.00018956,2]
[368339062,1751130638925,-500.0,0.00018956,2]
[368339063,1751130638941,-500.0,0.00018956,2]
[368339064,1751130638956,-1962.93991961,0.00018956,2]
[368339065,1751130638980,-553.74059208,0.00018956,2]
[368339066,1751130638996,-500.0,0.00018956,2]
[368339067,1751130639012,-500.0,0.00018956,2]
[368339068,1751130639028,-2003.95468012,0.00018956,2]
[368339069,1751130639044,-512.72583157,0.00018956,2]
[368339070,1751130639054,-500.0,0.00018956,2]
[368339071,1751130639064,-2516.68051169,0.00018956,2]
[368339072,1751130639073,-500.0,0.00018956,2]
[368339073,1751130639083,-500.0,0.00018956,2]
[368339074,1751130639093,-500.0,0.00018956,2]
[368339075,1751130639102,-2516.68051169,0.00018956,2]
[368339076,1751130639112,-500.0,0.00018956,2]
[368339077,1751130639121,-500.0,0.00018956,2]
[368339078,1751130639130,-500.0,0.00018956,2]
[368339079,1751130639140,-2516.68051169,0.00018956,2]
[368339080,1751130639425,-500.0,0.00018956,2]
[368339081,1751130639440,-500.0,0.00018956,2]
[368339082,1751130639450,-500.0,0.00018956,2]
[368339083,1751130639460,-2516.68051169,0.00018956,2]
[368339084,1751130639469,-500.0,0.00018956,2]
[368339085,1751130639478,-432.70753336,0.00018956,2]
[368339086,1751130639488,-500.0,0.00018956,2]
[368339087,1751130639497,-500.0,0.00018956,2]
[368339088,1751130639507,-2516.68051169,0.00018956,2]
[368339089,1751130639517,-500.0,0.00018956,2]
[368339090,1751130639527,-500.0,0.00018956,2]
[368339091,1751130639536,-500.0,0.00018956,2]
[368339092,1751130639546,-500.0,0.00018956,2]
[368339093,1751130639555,-2516.68051169,0.00018956,2]
[368339094,1751130639564,-500.0,0.00018956,2]
[368339095,1751130639574,-500.0,0.00018956,2]
[368339097,1751130639583,-2516.68051169,0.00018956,2]
[368339098,1751130639593,-500.0,0.00018956,2]
[368339099,1751130639603,-500.0,0.00018956,2]
[368339100,1751130639613,-2516.68051169,0.00018956,2]
[368339101,1751130639622,-500.0,0.00018956,2]
[368339102,1751130639632,-2516.68051169,0.00018956,2]
[368339103,1751130639642,-500.0,0.00018956,2]
[368339104,1751130639651,-500.0,0.00018956,2]
[368339105,1751130639663,-2516.68051169,0.00018956,2]
[368339106,1751130639673,-2516.68051169,0.00018956,2]
[368339107,1751130639683,-500.0,0.00018956,2]
[368339108,1751130639692,-500.0,0.00018956,2]
[368339109,1751130639701,-2516.68051169,0.00018956,2]
[368339110,1751130639711,-500.0,0.00018956,2]
[368339111,1751130639723,-500.0,0.00018956,2]
[368339112,1751130639732,-2516.68051169,0.00018956,2]
[368339113,1751130639743,-500.0,0.00018956,2]
[368339114,1751130639753,-2516.68051169,0.00018956,2]
[368339115,1751130639764,-500.0,0.00018956,2]
[368339116,1751130639774,-2516.68051169,0.00018956,2]
[368339117,1751130639783,-500.0,0.00018956,2]
[368339118,1751130639793,-2516.68051169,0.00018956,2]
[368339119,1751130639803,-500.0,0.00018956,2]
[368339120,1751130639812,-500.0,0.00018956,2]
[368339121,1751130639822,-2516.68051169,0.00018956,2]
[368339122,1751130639831,-500.0,0.00018956,2]
[368339123,1751130639841,-2516.68051169,0.00018956,2]
[368339125,1751130639851,-500.0,0.00018956,2]
[368339126,1751130639861,-4060.83212617,0.00018959,2]
[368339127,1751130639870,-1800.0,0.00018959,2]
[368339128,1751130639879,-3488.12283605,0.00018959,2]
[368339129,1751130639889,-500.0,0.00018959,2]
[368339130,1751130639898,-1800.0,0.00018959,2]
[368339131,1751130639907,-472.06,0.00018959,2]
[368339132,1751130639917,-151.66540298,0.00018959,2]
[368339133,1751130639926,-1800.0,0.00018959,2]
[368339134,1751130639935,-151.0,0.00018959,2]
[368339135,1751130639944,-1800.0,0.00018959,2]
[368339136,1751130639954,-151.0,0.00018959,2]
[368339137,1751130639963,-1800.0,0.00018959,2]
[368339138,1751130639975,-198.0,0.00018959,2]
[368339139,1751130639985,-1800.0,0.00018959,2]
[368339140,1751130639994,-1800.0,0.00018959,2]
[368339141,1751130640004,-1800.0,0.00018959,2]
[368339142,1751130640014,-1800.0,0.00018959,2]
[368339143,1751130640023,-1800.0,0.00018959,2]
[368339145,1751130640033,-1800.0,0.00018959,2]
[368339147,1751130640042,-1800.0,0.00018959,2]
[368339148,1751130640054,-1800.0,0.00018959,2]
[368339149,1751130640064,-1800.0,0.00018959,2]
[368339150,1751130640073,-1800.0,0.00018959,2]
[368339151,1751130640083,-1800.0,0.00018959,2]
[368339152,1751130640092,-1800.0,0.00018959,2]
[368339153,1751130640101,-1800.0,0.00018959,2]
[368339154,1751130640110,-160.0,0.00018964,2]
[368339155,1751130640119,-151.0,0.00018967,2]
[368339156,1751130640129,-151.0,0.00018967,2]
[368339157,1751130640139,-151.0,0.00018967,2]
[368339158,1751130640148,-151.0,0.00018967,2]
[368339159,1751130640157,-500.0,0.00018967,2]
[368339160,1751130640167,-201.70937818,0.00018967,2]
[368339161,1751130640176,-500.0,0.00018967,2]
[368339162,1751130640185,-500.0,0.00018967,2]
[368339163,1751130640194,-151.0,0.00018967,2]
[368339164,1751130640204,-151.8099724,0.00018967,2]
[368339165,1751130640214,-151.0,0.00018967,2]
[368339166,1751130640223,-500.0,0.00018967,2]
[368339167,1751130640234,-151.0,0.00018967,2]
[368339168,1751130640243,-151.0,0.00018967,2]
[368339169,1751130640253,-151.0,0.00018967,2]
[368339170,1751130640263,-151.0,0.00018968,2]
[368339171,1751130640273,-500.0,0.00018968,2]
[368339172,1751130640283,-151.0,0.00018968,2]
[368339173,1751130640293,-151.0,0.00018968,2]
[368339174,1751130640302,-500.0,0.00018968,2]
[368339175,1751130640312,-1288.0,0.00018969,2]
[368339177,1751130640322,-151.0,0.00018969,2]
[368339178,1751130640331,-151.0,0.0001897,2]
[368339180,1751130640341,-151.0,0.0001897,2]
[368339181,1751130640350,-500.0,0.0001897,2]
[368339182,1751130640360,-500.0,0.0001897,2]
[368339183,1751130640369,-151.0,0.0001897,2]
[368339184,1751130640379,-151.0,0.0001897,2]
[368339185,1751130640389,-151.0,0.0001897,2]
[368339186,1751130640399,-500.0,0.0001897,2]
[368339187,1751130640409,-151.0,0.0001897,2]
[368339188,1751130640418,-151.0,0.0001897,2]
[368339189,1751130640427,-151.28074181,0.0001897,2]
[368339190,1751130640437,-500.0,0.0001897,2]
[368339191,1751130640446,-500.0,0.0001897,2]
[368339192,1751130640456,-500.0,0.0001897,2]
[368339193,1751130640465,-500.0,0.00018974,2]
[368339194,1751130640475,-199.12907132,0.00018994,2]
[368339195,1751130640485,-151.0,0.00018994,2]
[368339196,1751130640494,-151.0,0.00018994,2]
[368339197,1751130640503,-500.0,0.00018994,2]
[368339198,1751130640512,-500.0,0.00018994,2]
[368339199,1751130640522,-500.0,0.00018994,2]
[368339200,1751130640531,-151.0,0.00018994,2]
[368339201,1751130640541,-151.00486941,0.00018994,2]
[368339202,1751130640550,-500.0,0.00018994,2]
[368339203,1751130640560,-151.29765514,0.00018994,2]
[368339204,1751130640569,-244.33204957,0.00018994,2]
[368339205,1751130640578,-235.2097866,0.00018995,2]
[368339206,1751130640588,-500.0,0.00018995,2]
[368339207,1751130640598,-151.0,0.00018995,2]
[368339208,1751130640607,-500.0,0.00018995,2]
[368339209,1751130640616,-1288.0,0.00018996,2]
[368339210,1751130640625,-151.0,0.00018996,2]
[368339211,1751130640635,-781.31796651,0.00018997,2]
[368339212,1751130640645,-151.0,0.00018997,2]
[368339213,1751130640654,-151.0,0.00018997,2]
[368339214,1751130640665,-500.0,0.00018997,2]
[368339215,1751130640674,-504.71614556,0.00018997,2]
[368339216,1751130640683,-151.45049726,0.00018997,2]
[368339217,1751130640693,-151.0,0.00018997,2]
[368339218,1751130640703,-151.0,0.00018997,2]
[368339219,1751130640712,-500.0,0.00018997,2]
[368339220,1751130640722,-500.0,0.00018997,2]
[368339221,1751130640732,-500.0,0.00018997,2]
[368339222,1751130640741,-500.0,0.00018997,2]
[368339223,1751130640751,-151.0,0.00019,2]
[368339224,1751130640760,-151.0,0.00019,2]
[368339225,1751130640770,-151.0,0.00019,2]
[368339226,1751130640779,-2000.38523967,0.00019,2]
[368339227,1751130640789,-282.85,0.00019015,3]
[368339228,1751130640798,-245.0,0.00019022,2]
[368339229,1751130640808,-151.0,0.00019022,2]
[368339230,1751130640817,-500.0,0.00019022,2]
[368339231,1751130640827,-351.54744974,0.00019022,2]
[368339232,1751130640836,-548.8316239,0.00019022,2]
[368339233,1751130640846,-152.6351556,0.00019022,2]
[368339234,1751130640855,-159.63510145,0.00019022,2]
[368339235,1751130640864,-500.0,0.00019023,2]
[368339236,1751130640874,-151.0,0.00019023,2]
[368339237,1751130640883,-500.0,0.00019023,2]
[368339238,1751130640893,-1288.0,0.00019024,2]
[368339239,1751130640902,-199.10625364,0.00019024,2]
[368339240,1751130640911,-151.0,0.00019025,2]
[368339241,1751130640921,-349.0,0.00019025,2]
[368339242,1751130640931,-302.0,0.00019025,2]
[368339243,1751130640941,-500.0,0.00019025,2]
[368339244,1751130640950,-208.0,0.00019025,2]
[368339245,1751130640960,-500.0,0.00019025,2]
[368339246,1751130640969,-151.0,0.00019049,2]
[368339247,1751130640983,-500.0,0.00019049,2]
[368339248,1751130640993,-500.0,0.0001905,2]
[368339249,1751130641002,-151.0,0.0001905,2]
[368339250,1751130641012,-500.0,0.0001905,2]
[368339251,1751130641023,-1288.0,0.00019051,2]
[368339252,1751130641032,-267.68267573,0.00019052,2]
[368339253,1751130641042,-315.92671865,0.00019052,2]
[368339254,1751130641054,-500.0,0.00019052,2]
[368339255,1751130641063,-227.75927338,0.00019077,2]
[368339256,1751130641073,-153.04574576,0.00019077,2]
[368339257,1751130641083,-500.0,0.00019078,2]
[368339258,1751130641093,-198.0,0.00019078,2]
[368339259,1751130641102,-500.0,0.00019078,2]
[368339260,1751130641112,-4482.81810432,0.00019078,2]
[368339261,1751130641121,-1288.0,0.00019079,2]
[368339262,1751130641131,-500.0,0.0001908,2]
[368339263,1751130641142,-151.0,0.000191,2]
[368339264,1751130641152,-151.0,0.000191,2]
[368339265,1751130641162,-151.0,0.000191,2]
[368339266,1751130641172,-151.0,0.000191,2]
[368339267,1751130641182,-5257.00834441,0.000191,2]
[368339268,1751130641192,-500.0,0.00019105,2]
[368339269,1751130641202,-393.5396023,0.00019105,2]
[368339270,1751130641211,-1288.0,0.00019106,2]
[368339271,1751130641221,-500.0,0.00019107,2]
[368339272,1751130641231,-500.0,0.00019132,2]
[368339273,1751130641242,-1288.0,0.00019133,2]
[368339274,1751130641252,-500.0,0.00019134,2]
[368339275,1751130641263,-5257.00834414,0.00019141,2]
[368339276,1751130641273,-920.0,0.0001915,2]
[368339277,1751130641286,-500.0,0.0001916,2]
[368339278,1751130641296,-1288.0,0.00019161,2]
[368339279,1751130641306,-500.0,0.00019162,2]
[368339280,1751130641316,-503.05538962,0.00019173,2]
[368339281,1751130641325,-500.0,0.00019173,2]
[368339282,1751130641335,-500.0,0.00019173,2]
[368339283,1751130641345,-500.0,0.00019173,2]
[368339284,1751130641354,-500.0,0.00019173,2]
[368339285,1751130641363,-500.0,0.00019173,2]
[368339286,1751130641374,-503.61778586,0.00019173,2]
[368339287,1751130641383,-500.0,0.00019173,2]
[368339288,1751130641392,-331.18375273,0.00019173,2]
[368339289,1751130641401,-500.0,0.00019173,2]
[368339290,1751130641411,-500.0,0.00019173,2]
[368339291,1751130641420,-505.22828795,0.00019173,2]
[368339292,1751130641430,-500.0,0.00019173,2]
[368339293,1751130641440,-500.0,0.00019173,2]
[368339294,1751130641449,-500.0,0.00019173,2]
[368339295,1751130641459,-500.0,0.00019173,2]
[368339296,1751130641470,-500.0,0.00019173,2]
[368339297,1751130641480,-154.41597765,0.00019173,2]
[368339298,1751130641492,-500.0,0.00019173,2]
[368339299,1751130641501,-504.70859062,0.00019173,2]
[368339300,1751130641510,-500.0,0.00019173,2]
[368339301,1751130641519,-500.0,0.00019173,2]
[368339302,1751130641528,-265.39229977,0.00019173,2]
[368339303,1751130641538,-302.07678004,0.00019173,2]
[368339304,1751130641547,-500.0,0.00019173,2]
[368339305,1751130641556,-326.93606038,0.00019173,2]
[368339306,1751130641565,-500.0,0.00019173,2]
[368339307,1751130641575,-500.0,0.00019173,2]
[368339308,1751130641584,-425.48552401,0.00019173,2]
[368339309,1751130641593,-500.0,0.00019173,2]
[368339310,1751130641602,-500.0,0.00019173,2]
[368339311,1751130641612,-225.24576644,0.00019173,2]
[368339312,1751130641621,-500.0,0.00019173,2]
[368339313,1751130641631,-500.0,0.00019173,2]
[368339314,1751130641640,-166.2738543,0.00019173,2]
[368339315,1751130641650,-500.0,0.00019173,2]
[368339316,1751130641659,-467.05859119,0.00019173,2]
[368339317,1751130641668,-500.16487095,0.00019173,2]
[368339318,1751130641678,-518.8826297,0.00019173,2]
[368339319,1751130641687,-500.0,0.00019173,2]
[368339320,1751130641696,-500.0,0.00019173,2]
[368339321,1751130641705,-505.39440845,0.00019173,2]
[368339322,1751130641714,-151.0,0.00019173,2]
[368339323,1751130641723,-151.0,0.00019173,2]
[368339324,1751130641734,-151.0,0.00019173,2]
[368339325,1751130641743,-151.0,0.00019173,2]
[368339326,1751130641752,-202.365096,0.00019173,2]
[368339327,1751130641762,-202.365096,0.00019173,2]
[368339328,1751130641772,-151.0,0.00019173,2]
[368339329,1751130641781,-500.0,0.00019176,2]
[368339330,1751130641792,-513.72327942,0.00019176,2]
[368339331,1751130641802,-1342.64369447,0.00019176,2]
[368339332,1751130641812,-478539.55873497,0.00019177,3]
[368339333,1751130641821,-151.0,0.00019177,2]
[368339334,1751130641830,-151.0,0.00019177,2]
[368339335,1751130641840,-151.0,0.00019177,2]
[368339336,1751130641849,-151.0,0.00019177,2]
[368339337,1751130641859,-151.0,0.00019177,2]
[368339338,1751130641868,-172.871457,0.00019177,2]
[368339339,1751130641877,-172.871457,0.00019177,2]
[368339340,1751130641886,-257.03806319,0.00019177,2]
[368339341,1751130641895,-151.0,0.00019177,2]
[368339342,1751130641904,-151.0,0.00019177,2]
[368339343,1751130641913,-151.0,0.00019177,2]
[368339344,1751130641921,-151.0,0.00019177,2]
[368339345,1751130641930,-151.0,0.00019177,2]